Workbook

Sheet I - FTES History
B7: 2005-2006 Actual | C7: % | D7: 2006-2007 Actual | E7: % | F7: 2007-2008 Actual | G7: % | H7: 2008-2009 Actual | I7: % | J7: 4 Year Average % of Total
A9: SBVC | B9: 9531.79 | C9: =B9/B11 -> 0.7173069542 | D9: 9415.12 | E9: =D9/D11 -> 0.683518095 | F9: 9857.02 | G9: =F9/F11 -> 0.6989431139 | H9: 10727.72 | I9: =H9/H11 -> 0.7005363867 | J9: =(I9+G9+E9+C9)/4 -> 0.7000761375
A10: CHC | B10: 3756.51 | C10: =B10/B11 -> 0.2826930458 | D10: 4359.38 | E10: =D10/D11 -> 0.316481905 | F10: 4245.73 | G10: =F10/F11 -> 0.3010568861 | H10: 4585.86 | I10: =H10/H11 -> 0.2994636133 | J10: =(I10+G10+E10+C10)/4 -> 0.2999238625
A11: Total | B11: =SUM(B9:B10) -> 13288.3 | C11: 1 | D11: 13774.5 | E11: 1 | F11: 14102.75 | G11: 1 | H11: 15313.58 | I11: 1 | J11: =(I11+G11+E11+C11)/4 -> 1

Sheet II - Alloc Illustration
B4: Base Allocation Revenue per SB361 for Medium and Small Colleges | D4: State Funded FTES Credit | E4: % | F4: State Funded Rate Credit FTES | G4: Credit Funding | H4: State Funded FTES Noncredit | I4: % | J4: State Funded Rate Noncredit FTES | K4: Noncredit Funding | L4: Total State Base Revenue
A6: SBVC | B6: 3875136 | D6: 9636.51 | E6: =D6/D8 -> 0.7000001453 | F6: 4564.8251 | G6: =(D6*F6) -> 43988982.72 | H6: 7.82 | I6: =H6/H8 -> 0.7000895255 | J6: 2744.96 | K6: =H6*J6 -> 21465.5872 | L6: =B6+G6+K6 -> 47885584.31
A7: CHC | B7: 3321545 | D7: 4129.93 | E7: =D7/D8 -> 0.2999998547 | F7: 4564.8251 | G7: =D7*F7 -> 18852408.13 | H7: 3.35 | I7: =H7/H8 -> 0.2999104745 | J7: 2744.96 | K7: =H7*J7 -> 9195.616 | L7: =K7+G7+B7 -> 22183148.74
A8: Total | B8: =SUM(B6:B7) -> 7196681 | D8: =SUM(D6:D7) -> 13766.44 | G8: =SUM(G6:G7) -> 62841390.85 | H8: =SUM(H6:H7) -> 11.17 | K8: =SUM(K6:K7) -> 30661.2032 | L8: =SUM(L6:L7) -> 70068733.05

Sheet III - Budget Model Net Alloc
B7: A | C7: B | D7: C | F7: D | G7: E | H7: F | I7: G | K7: H | L7: I | M7: J | N7: K | O7: L
B8: Total Base State Revenue | C8: Growth | D8: COLA -0.38% | E8: Total Base Revenue | F8: Part-Time Faculty | G8: Lottery Funds | H8: Interest Income | I8: Other Campus Revenue | J8: Total Income | K8: Assessment for District Office | L8: Assessment for District-Wide Costs | M8: Assessment for Auxiliary Operations | N8: Assessment for SERP | O8: Assessment for District Reserve | P8: Budget Allocation
A10: SBVC | B10: 47885584 | C10: 0 | D10: -181965 | E10: =SUM(B10:D10) -> 47703619 | F10: 135092 | G10: 987855 | H10: 263746 | I10: 446032 | J10: =E10+F10+G10+H10+I10 -> 49536344 | K10: -9136649 | L10: =-1781331-(-1156931) -> -624400 | M10: =-152565+(-1156931) -> -1309496 | N10: -876711 | O10: 0 | P10: =SUM(J10:O10) -> 37589088
D11: =SUM(B11*0.38%) -> 0
A12: CHC | B12: 22183149 | C12: 0 | D12: -84296 | E12: =B12+C12+D12 -> 22098853 | F12: 57896 | G12: 423367 | H12: 113034 | I12: 232054 | J12: =E12+F12+G12+H12+I12 -> 22925204 | K12: -3915706 | L12: =-763427-(-495827) -> -267600 | M12: =-65385+(-495827) -> -561212 | N12: -269238 | O12: 0 | P12: =SUM(J12:O12) -> 17911448
A14: Total | B14: =SUM(B10:B12) -> 70068733 | C14: =C12+C10 -> 0 | D14: =D12+D10 -> -266261 | E14: =E12+E10 -> 69802472 | F14: =F10+F12 -> 192988 | G14: =G12+G10 -> 1411222 | H14: 376780 | I14: 678086 | J14: 72461548 | K14: -13052355 | L14: -892000 | M14: =SUM(M10:M12) -> -1870708 | N14: =SUM(N10+N12) -> -1145949 | O14: =O12+O10 -> 0 | P14: =SUM(P10:P12) -> 55500536
A18: A. FTES based computational revenue includes state apportionment, student fees (98%) property taxes. From Worksheet II.
A19: B. Growth will not be allocated until it is in the final budget. This will avoid overbudgeting and overspending.
A20: Will assume even distribution for 2010-2011 since both colleges are over enrollment cap.
A21: C. Based on Governor's Budget for 2010-2011 applied to Total Base State Revenue.
A22: D. Based on 2009-2010 Advance Apportionment revised November 2009 adjusted by proposed Governor's cut of $120,000. Allocated based on 4-year average percentage of FTES.
A23: E. 90% of Actual income generated two fiscal years prior to budget year (i.e., for 2010-2011 budget use 90% of 2008-2009
A24: actual income) and allocated based on 4-year average percentage of FTES. Adjustment to 100% of one year prior actual will be made in October of budget year.
A25: F. 90% of Actual income generated two fiscal years prior to budget year (i.e., for 2010-2011 budget use 90% of 2008-2009
A26: actual income) and allocated based on 4-year average percentage of FTES. Adjustment to 100% of one year prior actual will be made in October of budget year.
A27: G. 90% of Actual income generated by each site two fiscal years prior to budget year (i.e., for 2010-2011 budget use 90% of 2008-2009
A28: actual income. Adjustment to 100% of one year prior actual will be made in October of budget year.
A29: H. Includes all District operations including HR, Fiscal, Police, DETS, PDC. Allocated based on 4-year average percentage of FTES.
A30: I. Includes transfer for Property/Liability Insurance ($550,000 and Retiree funds for GASB 45 compliance ($342,000). Allocated based on 4-year average percentage of FTES.
A31: J. Assessment for KVCR ($1,652,758) Auxilliary Services Accounting Staff -- bookstore, cafeteria, trust funds ($217,950). Allocated based on 4-year average percentage of FTES.
A32: K. Funding for 20% of retiree salary plus retiree benefits (five years) of 2009-2010 SERP.
A33: L. Potential for funds to meet District reserve requirements.
A35: NOTES:
A36: Site budgets with life spans other than 00 and subprograms other than 0000 must submit a balanced budget.

Sheet v (hidden)

Sheet x (hidden)

Sheet - (hidden)
